bitfinex-derivatives/quotes_ETHF0:USTF0_20250926
["timestamp","ask_amount","ask_price","bid_price","bid_amount"]
[1758916835825,1.37974419,4018.6,4018.5,0.50954646]
[1758916836525,0.93217419,4018.6,4018.5,0.50954646]
[1758916837332,0.10987419,4018.6,4018.5,1.10294646]
[1758916837634,0.10987419,4018.6,4018.5,1.69412646]
[1758916838024,0.10987419,4018.6,4018.5,0.99054646]
[1758916838223,0.10987419,4018.6,4018.5,1.24654646]
[1758916838429,0.35077419,4018.6,4018.5,1.69412646]
[1758916838728,0.35077419,4018.6,4018.5,1.24654646]
[1758916838932,0.93217419,4018.6,4018.5,1.10294646]
[1758916839134,1.37974419,4018.6,4018.5,1.10294646]
[1758916839427,1.37974419,4018.6,4018.5,0.50954646]
[1758916839629,1.37974419,4018.6,4018.5,0.00264646]
[1758916840131,1.37974419,4018.6,4018.5,0.25864646]
[1758916840734,0.93217419,4018.6,4018.5,0.87294646]
[1758916841034,1.37974419,4018.6,4018.5,0.50954646]
[1758916841334,0.8223,4018.2,4018.1,2.9777]
[1758916841526,4.13997419,4018.2,4018.1,0.256]
[1758916841727,4.13997419,4018.2,4018.1,0.5069]
[1758916842429,4.13997419,4018.2,4018.1,0.25266588]
[1758916842731,4.13997419,4018.2,4018.1,0.74076588]
[1758916843035,0.72657419,4018.2,4018.1,1.11096588]
[1758916843231,0.97937419,4018.2,4018.1,0.00176588]
[1758916843734,0.97937419,4018.2,4018.1,0.51116588]
[1758916844541,0.97937419,4018.2,4018.1,0.25516588]
[1758916844729,0.97937419,4018.2,4018.1,0.51116588]
[1758916844930,0.97937419,4018.2,4018.1,1.11346588]
[1758916845431,0.10987419,4018.2,4018.1,1.56109588]
[1758916848529,3.8245,4019.2,4019.1,1.30322]
[1758916848731,3.2078,4019.2,4019.1,1.55922]
[1758916849931,3.4598,4019.2,4019.1,1.1117]
[1758916850137,3.8245,4019.2,4019.1,1.55922]
[1758916850528,3.8245,4019.2,4019.1,1.30322]
[1758916850729,3.2078,4019.2,4019.1,1.55922]
[1758916851545,4.0773,4019.2,4018.7,0.81776]
[1758916851840,4.52481,4019.2,4019.1,0.256]
[1758916852050,0.44755,4018.8,4018.7,0.2534]
[1758916852238,3.5725,4019.2,4018.3,0.2534]
[1758916852239,0.8695,4018.4,4018.3,0.2534]
[1758916852435,0.8695,4018.4,4018.3,0.5094]
[1758916852631,0.8695,4018.4,4018.3,0.95701]
[1758916852942,0.8695,4018.4,4018.3,0.256]
[1758916853139,1.3171,4018.4,4018.3,0.256]
[1758916853440,1.31712,4018.2,4018.1,0.00176588]
[1758916853644,5.04097153,4018.2,4018.1,0.00176588]
[1758916853845,5.04097153,4018.2,4018.1,0.25776588]
[1758916854250,4.59335153,4018.2,4018.1,0.00176588]
[1758916854544,5.04097153,4018.2,4018.1,0.25776588]
[1758916855733,5.04097153,4018.2,4018.1,0.00176588]
[1758916855937,5.04097153,4018.2,4018.1,0.25776588]
[1758916856650,4.59335153,4018.2,4018.1,0.70539588]
[1758916856947,5.04097153,4018.2,4018.1,0.25776588]
[1758916857337,5.04097153,4018.2,4018.1,0.00176588]
[1758916857536,5.04097153,4018.2,4018.1,0.25776588]
[1758916858243,5.04097153,4018.2,4018.1,0.00176588]
[1758916858444,5.04097153,4018.2,4018.1,0.25776588]
[1758916860444,5.15090494,4018.2,4018.1,0.25776588]
[1758916860945,4.70328494,4018.2,4018.1,0.25776588]
[1758916861142,4.70328494,4018.2,4018.1,1.56109588]
[1758916861143,4.18723341,4018.2,4018.1,1.56109588]
[1758916861335,3.56973341,4018.2,4018.1,1.56109588]
[1758916861537,3.31773341,4018.2,4018.1,1.56109588]
[1758916862141,4.63485341,4018.2,4018.1,0.25776588]
[1758916862341,4.63485341,4018.2,4018.1,0.00176588]
[1758916862642,4.63485341,4018.2,4018.1,0.25776588]
[1758916863440,4.63485341,4018.2,4018.1,0.00176588]
[1758916863641,9.63485341,4018.2,4018.1,0.00176588]
[1758916863840,1.45774,4018.0,4017.9,0.28088893]
[1758916864139,0.4477,4017.5,4017.1,0.44774]
[1758916864452,0.6167,4017.2,4017.1,1.30344]
[1758916864742,0.72663341,4017.2,4017.1,1.56144861]
[1758916864947,0.72663341,4017.2,4017.1,0.25540861]
[1758916864948,1.42716341,4017.2,4017.1,0.25540861]
[1758916865144,1.42716341,4017.2,4017.1,0.00200861]
[1758916865348,1.42716341,4017.2,4017.1,0.25800861]
[1758916865743,1.42716341,4017.2,4017.1,0.00200861]
[1758916865947,1.42716341,4017.2,4017.1,0.25800861]
[1758916866149,0.97943341,4017.2,4017.1,0.25800861]
[1758916866944,1.42716341,4017.2,4017.1,0.25800861]
[1758916867745,0.97943341,4017.2,4017.1,0.25800861]
[1758916867944,1.42716341,4017.2,4017.1,0.00200861]
[1758916868248,1.42716341,4017.2,4017.1,0.25800861]
[1758916868755,0.97943341,4017.2,4017.1,0.50460861]
[1758916868942,0.47463341,4017.2,4017.1,1.53864861]
[1758916869148,0.35363341,4017.2,4017.1,1.53864861]
[1758916869352,0.72633341,4017.2,4017.1,1.53864861]
[1758916870650,0.1406,4018.0,4017.1,1.53864861]
[1758916870651,0.3727,4017.8,4017.7,0.4881]
[1758916870960,0.6164,4017.8,4017.7,1.53657]
[1758916871753,0.6164,4017.8,4017.7,1.0889]
[1758916873650,0.44773,4017.2,4017.1,0.00200861]
[1758916873852,1.27083,4017.2,4017.1,0.25800861]
[1758916874559,0.8231,4017.2,4017.1,0.25800861]
[1758916874856,0.8231,4017.2,4017.1,0.48700861]
[1758916875057,0.8231,4017.2,4017.1,1.51604861]
[1758916875259,0.8231,4017.2,4017.1,1.06830861]
[1758916875558,0.8231,4017.2,4017.1,1.51604861]
[1758916875851,1.27083,4017.2,4017.1,0.00200861]
[1758916876052,0.8231,4017.2,4017.1,0.25800861]
[1758916876252,0.8231,4017.2,4017.1,0.48700861]
[1758916876558,0.8231,4017.2,4017.1,1.06830861]
[1758916877263,1.27083,4017.2,4017.1,1.06830861]
[1758916877658,0.8231,4017.2,4017.1,1.06830861]
[1758916877957,1.27083,4017.2,4017.1,1.06830861]
[1758916879760,0.8231,4017.2,4017.1,1.06830861]
[1758916880354,3.2078,4017.5,4017.2,0.3444]
[1758916880552,3.2078,4017.5,4017.4,1.25801]
[1758916880748,3.2078,4017.5,4017.4,1.51401]
[1758916881361,3.6801,4017.5,4017.4,0.229]
[1758916881549,4.0309,4017.5,4017.4,1.0663]
[1758916882454,4.0309,4017.5,4017.4,0.8103]
[1758916882662,4.73858525,4017.5,4017.4,1.0663]
[1758916882856,1.27083,4017.2,4017.1,0.00200861]
[1758916883058,1.38221525,4017.2,4017.1,0.25800861]
[1758916883649,1.38221525,4017.2,4017.1,0.00200861]
[1758916883854,1.38221525,4017.2,4017.1,0.25800861]
[1758916884059,6.90541185,4017.2,4017.1,0.00200861]
[1758916884263,1.41945,4017.0,4016.9,2.81310861]
[1758916884456,4.73863525,4017.0,4016.9,1.6754]
[1758916884861,4.73863525,4017.0,4016.9,1.4194]
[1758916885160,4.74151756,4017.0,4016.9,1.4219379]
[1758916885462,9.74151756,4017.0,4016.9,1.4219379]
[1758916885860,50.54151756,4017.0,4016.9,0.0025379]
[1758916889265,0.4723,4015.8,4015.7,2.16178]
[1758916889575,1.38237525,4015.8,4015.7,3.22808]
[1758916889761,0.93448525,4015.8,4015.7,3.22808]
[1758916890163,0.93448525,4015.8,4015.7,3.23107638]
[1758916892159,1.38237525,4015.8,4015.7,3.23107638]
[1758916892365,0.93448525,4015.8,4015.7,3.23107638]
[1758916893665,0.93448525,4015.8,4015.7,2.97507638]
[1758916893861,0.93448525,4015.8,4015.7,3.23107638]
[1758916894067,0.33858525,4015.8,4015.7,3.23107638]
[1758916894571,4.47875,4016.1,4016.0,0.8103]
[1758916894771,4.58974471,4016.1,4016.0,1.0663]
[1758916897560,4.14189471,4016.1,4016.0,1.0663]
[1758916897866,3.31879471,4016.1,4016.0,1.65026]
[1758916898074,3.2078,4016.1,4016.0,1.65026]
[1758916898567,3.2078,4016.1,4016.0,6.65026]
[1758916898874,3.2078,4016.6,4016.5,1.3942]
[1758916899069,3.2078,4016.6,4016.5,1.6502]
[1758916899266,3.2078,4016.6,4016.5,1.65021]
[1758916899772,3.2078,4016.6,4016.5,1.2024]
[1758916901670,3.2078,4016.6,4016.5,1.65021]
[1758916901871,3.2078,4016.6,4016.5,1.2024]
[1758916902674,0.80143231,4017.0,4016.9,0.4844]
[1758916902873,1.14375088,4017.0,4016.9,1.1071]
[1758916903067,1.38905088,4017.0,4016.9,1.1071]
[1758916903468,1.54005088,4017.0,4016.9,0.8511]
[1758916903667,1.013,4016.5,4016.4,3.4533]
[1758916903976,1.013,4016.5,4016.4,4.3149]
[1758916904368,1.46081,4016.5,4016.4,4.3149]
[1758916904568,1.013,4016.5,4016.4,4.3149]
[1758916904771,0.862,4016.5,4016.4,4.3149]
[1758916904968,0.231,4016.5,4016.4,4.76272]
[1758916905172,0.231,4016.5,4016.4,4.3149]
[1758916905471,1.06733231,4017.0,4016.9,0.8511]
[1758916905675,1.17868749,4017.0,4016.9,1.1071]
[1758916906263,1.42398749,4017.0,4016.9,1.1071]
[1758916907174,1.57498749,4017.0,4016.9,0.4949]
[1758916907379,1.3098,4016.6,4016.5,0.2389]
[1758916907576,0.44784,4016.2,4016.1,1.5017]
[1758916907776,1.46086,4016.0,4015.9,3.2078]
[1758916907976,1.46086,4016.0,4015.9,3.4638]
[1758916908176,1.46086,4016.0,4015.9,0.256]
[1758916908575,1.46086,4016.0,4015.9,1.43551463]
[1758916908769,1.46086,4016.0,4015.9,0.256]
[1758916908975,0.92419,4015.8,4015.6,1.43551463]
[1758916909173,1.30989,4015.8,4015.7,1.97287638]
[1758916909777,1.30989,4015.8,4015.7,1.95577638]
[1758916909979,0.862,4015.8,4015.7,2.21177638]
[1758916910169,1.42125425,4015.8,4015.7,3.64729101]
[1758916910366,0.97336425,4015.8,4015.7,3.64729101]
[1758916910571,0.97336425,4015.8,4015.7,2.21177638]
[1758916910771,1.42125425,4015.8,4015.7,2.21177638]
[1758916912085,1.42125425,4015.8,4015.7,2.82397638]
[1758916912581,0.34236425,4015.8,4015.7,2.82397638]
[1758916913183,0.34248306,4015.8,4015.7,2.82397638]
[1758916913479,0.79037306,4015.8,4015.7,2.82397638]
[1758916914081,1.42137306,4015.8,4015.7,2.45727638]
[1758916915089,1.42137306,4015.8,4015.7,2.21177638]
[1758916916082,1.42137306,4015.8,4015.7,1.71687638]
[1758916916277,1.42137306,4015.8,4015.7,2.21177638]
[1758916916474,1.42137306,4015.8,4015.7,2.82397638]
[1758916917680,1.42137306,4015.8,4015.7,2.45727638]
[1758916919083,1.42137306,4015.8,4015.7,2.82397638]
[1758916919274,1.03567306,4015.8,4015.7,2.82397638]
[1758916919476,1.0356209,4015.8,4015.7,2.82397638]
[1758916919676,1.4213209,4015.8,4015.7,2.82397638]
[1758916920382,1.1760209,4015.8,4015.7,2.82397638]
[1758916921387,1.4213209,4015.8,4015.7,2.56797638]
[1758916921576,1.4213209,4015.8,4015.7,2.21177638]
[1758916921984,1.4213209,4015.8,4015.7,2.82397638]
[1758916922485,1.42129924,4015.8,4015.7,2.82397638]
[1758916922889,6.42129924,4015.8,4015.7,1.19111638]
[1758916923185,6.42129924,4015.8,4015.7,0.69111638]
[1758916924083,6.42129924,4015.8,4015.7,0.19111638]
[1758916924286,6.42129924,4015.8,4015.5,1.2002]
[1758916924287,1.30991,4015.6,4015.5,1.2002]
[1758916924586,4.62911924,4015.6,4015.5,1.2002]
[1758916924986,1.07522,4015.5,4015.4,1.8287]
[1758916925182,1.57232924,4015.5,4015.4,1.8287]
[1758916925379,1.57232924,4015.5,4015.4,1.83105693]
[1758916925686,3.2078,4016.6,4015.4,10.52325693]
[1758916925874,0.00288231,4017.0,4016.9,0.4944]
[1758916926082,0.00288231,4017.0,4016.9,4.3196]
[1758916926280,0.00288231,4017.0,4016.9,5.65698496]
[1758916926479,0.00288231,4017.0,4016.9,4.3196]
[1758916927180,0.00288231,4017.0,4016.9,5.65698496]
[1758916927388,0.00288231,4017.0,4016.9,4.3196]
[1758916928280,0.00288231,4017.0,4016.9,5.65698496]
[1758916928485,0.44764,4018.0,4017.9,0.2557]
[1758916928789,0.44764,4018.0,4017.9,1.1128]
[1758916928987,0.68614,4018.0,4017.9,1.1128]
[1758916929181,0.5959,4018.0,4017.9,1.1128]
[1758916929383,0.3574,4018.7,4018.2,0.3614]
[1758916929585,0.00218153,4018.7,4018.6,5.10189222]
[1758916929788,0.00218153,4018.7,4018.6,5.36149419]
[1758916930283,0.00218153,4018.7,4018.6,5.72289419]
[1758916930488,0.35958153,4018.7,4018.6,5.72289419]
[1758916931590,0.35958153,4018.7,4018.6,0.36400197]
[1758916931888,0.35958153,4018.7,4018.3,0.6864]
[1758916931889,0.805,4018.4,4018.3,0.6864]
[1758916932089,4.0128,4018.4,4018.3,0.9434]
[1758916932790,4.0128,4018.4,4018.3,0.94599028]
[1758916932991,4.0128,4018.4,4018.3,0.25959028]
[1758916934093,0.44759,4018.5,4018.3,0.25959028]
[1758916934293,0.00218153,4018.7,4018.5,0.1595]
[1758916934486,0.00218153,4018.7,4018.6,5.75689222]
[1758916935683,0.00218153,4018.7,4018.6,5.49989222]
[1758916935888,0.40168153,4018.7,4018.6,5.35889222]
[1758916936392,0.3995,4018.5,4018.4,1.6039]
[1758916936586,0.5515,4018.5,4018.4,1.6039]
[1758916936793,0.5515,4018.5,4018.4,1.8609]
[1758916937382,0.5515,4018.5,4018.4,1.6039]
[1758916937587,0.44758,4018.6,4018.4,2.2589]
[1758916937791,0.44758,4018.6,4018.5,0.398]
[1758916938091,0.3995,4018.6,4018.5,0.398]
[1758916938293,0.00218153,4018.7,4018.6,0.398]
[1758916938494,0.00218153,4018.7,4018.6,5.75689222]
[1758916938891,0.00218153,4018.7,4018.6,5.35889222]
[1758916939089,0.00218153,4018.7,4018.6,5.75689222]
[1758916940887,0.00218153,4018.7,4018.6,6.20446222]
[1758916941593,0.3995,4019.7,4019.3,0.44749]
[1758916941795,0.44745,4019.7,4019.6,0.398]
[1758916941992,0.44744,4019.8,4019.6,0.257]
[1758916942300,0.44744,4019.8,4019.7,0.398]
[1758916942693,0.44925765,4019.8,4019.7,0.398]
[1758916943287,0.00181765,4019.8,4019.7,0.398]
[1758916943495,0.44925765,4019.8,4019.7,0.398]
[1758916944801,0.00181765,4019.8,4019.7,0.398]
[1758916945093,0.00181765,4019.8,4019.7,0.84545]
[1758916945296,0.00181765,4019.8,4019.7,3.6058]
[1758916945499,0.00181765,4019.8,4019.7,4.05325]
[1758916946102,0.44925765,4019.8,4019.7,3.6058]
[1758916946402,0.3995,4019.3,4019.2,3.2078]
[1758916946594,0.3995,4019.3,4019.2,3.8628]
[1758916946900,0.847,4019.3,4019.2,3.8628]
[1758916950399,0.847,4019.3,4019.2,4.3722]
[1758916950803,1.1053,4019.3,4019.2,4.3722]
[1758916951501,1.1053,4019.3,4019.2,1.1644]
[1758916953506,0.4475,4019.3,4019.2,1.1644]
[1758916953994,0.44754,4018.9,4018.8,0.398]
[1758916954196,1.35984,4018.9,4018.8,1.1634]
[1758916954703,1.35984,4018.9,4018.3,0.68889028]
[1758916954704,1.35988,4018.5,4018.4,1.8609]
[1758916955004,1.62960399,4018.5,4018.4,1.8609]
[1758916955204,1.62960399,4018.5,4018.4,2.1169]
[1758916955999,1.62960399,4018.5,4018.4,1.6039]
[1758916956204,6.62960399,4018.5,4018.4,1.6039]
[1758916956403,0.44773,4017.2,4017.1,3.2078]
[1758916956598,1.03002399,4017.2,4017.1,4.1198]
[1758916956805,1.03002399,4017.2,4017.1,4.3722]
[1758916957206,0.77552399,4017.2,4017.1,4.3722]
[1758916957506,0.77552399,4017.2,4017.1,1.16732313]
[1758916957707,0.77552399,4017.2,4017.1,0.51232313]
[1758916957708,1.03002399,4017.2,4017.1,0.51232313]
[1758916957911,1.03002399,4017.2,4017.1,0.25992313]
[1758916958308,6.03002399,4017.2,4017.1,0.00292313]
[1758916958507,0.84734,4016.2,4016.1,3.6058]
[1758916958697,0.96506399,4016.2,4016.1,3.8628]
[1758916958903,0.51722399,4016.2,4016.1,3.8628]
[1758916959410,0.12087388,4016.2,4016.1,3.86594962]
[1758916959707,0.52037388,4016.2,4016.1,3.86594962]
[1758916960105,0.12087388,4016.2,4016.1,3.86594962]
[1758916960309,0.00314989,4016.2,4016.1,9.72276804]
[1758916960510,0.44776,4017.0,4016.6,0.398]
[1758916960711,0.115169,4016.9,4016.8,0.398]
[1758916960900,0.115169,4016.9,4016.8,0.655]
[1758916961509,0.51651648,4016.9,4016.8,0.655]
[1758916962114,0.11701648,4016.9,4016.8,0.655]
[1758916963306,0.00184748,4016.9,4016.8,0.655]
[1758916964514,0.3941,4016.3,4016.2,3.2078]
[1758916964703,0.3941,4016.3,4016.2,3.4648]
[1758916965013,0.3941,4016.3,4016.2,3.841]
[1758916965198,0.5091129,4016.3,4016.2,3.841]
[1758916966200,0.1150129,4016.3,4016.2,3.841]
[1758916966412,0.44783,4016.4,4016.2,3.4648]
[1758916966615,0.3941,4016.8,4016.3,0.3762]
[1758916966814,0.11490587,4016.7,4016.3,0.3762]
[1758916967019,0.11490587,4016.6,4016.5,0.1469]
[1758916967210,41.24779,4016.7,4016.6,0.3762]
[1758916967710,0.44779,4016.7,4016.6,0.3762]
[1758916970011,0.44777,4016.8,4016.5,0.4039]
[1758916970313,0.44778,4016.7,4016.6,0.8931]
[1758916970510,0.44961748,4016.9,4016.6,0.5169]
[1758916970712,0.44778,4016.8,4016.7,0.3762]
[1758916970908,0.44778,4016.8,4016.7,0.6316]
[1758916971209,0.44778,4016.8,4016.7,0.8931]
[1758916972414,0.44778,4016.8,4015.9,0.5457]
[1758916972415,1.36922,4016.4,4016.3,0.2554]
[1758916972718,1.36922,4016.4,4016.3,1.1491]
[1758916973308,0.44784,4016.2,4015.9,0.5457]
[1758916973512,0.70824,4016.2,4016.1,1.15224962]
[1758916974208,0.44783,4016.4,4016.1,1.15224962]
[1758916974411,0.84191,4016.5,4016.4,0.8931]
[1758916974614,0.44779,4016.7,4016.6,0.8931]
[1758916974820,0.44779,4016.7,4016.6,1.1491]
[1758916976111,1.36919,4016.7,4016.6,0.7729]
[1758916976320,1.36922,4016.4,4016.3,3.8394]
[1758916976618,1.36922,4016.4,4016.3,3.4632]
[1758916976921,1.36922,4016.4,4016.3,3.4638]
[1758916977311,1.36922,4016.4,4016.3,3.7192]
[1758916977513,0.00184748,4016.9,4016.8,0.8931]
[1758916977714,0.00184748,4016.9,4016.8,4.3579]
[1758916978523,0.00184748,4016.9,4016.8,4.80567]
[1758916978817,0.00184748,4016.9,4016.8,9.80567]
[1758916980420,3.2078,4017.7,4017.6,0.8931]
[1758916980619,3.3229807,4017.7,4017.6,1.1491]
[1758916980812,3.2078,4018.2,4017.6,0.7729]
[1758916981010,0.56283192,4018.1,4018.0,0.5169]
[1758916981216,0.11520192,4018.1,4018.0,1.296]
[1758916981421,0.11725643,4018.1,4018.0,1.296]
[1758916981719,0.00205451,4018.1,4018.0,1.296]
[1758916984018,0.5498,4019.0,4018.1,0.44763]
[1758916984216,1.10203,4019.0,4018.9,0.8931]
[1758916984418,0.37585625,4019.0,4018.9,1.1491]
[1758916984614,0.11545625,4019.0,4018.9,1.1491]
[1758916985229,0.11827414,4019.0,4018.9,1.1491]
[1758916985522,0.44754,4018.9,4018.7,0.5455]
[1758916985830,1.0368225,4018.8,4018.7,0.5455]
[1758916986121,1.0368225,4018.8,4018.7,0.5569]
[1758916987218,1.4843725,4018.8,4018.7,0.5569]
[1758916988021,1.4843725,4018.8,4018.7,0.5114]
[1758916988419,0.5629725,4018.8,4018.7,1.1559]
[1758916988616,0.8259725,4018.8,4018.7,1.1559]
[1758916988925,1.10203,4018.1,4018.0,4.117]
[1758916989125,1.35733,4018.1,4018.0,1.1652]
[1758916989423,0.6544,4018.1,4018.0,1.1652]
[1758916989621,0.44763,4018.1,4018.0,1.3187]
[1758916990324,0.44763,4018.1,4018.0,1.1652]
[1758916990325,1.10203,4018.1,4018.0,1.1652]
[1758916991623,1.35737,4017.7,4017.6,0.6612]
[1758916991814,1.35737,4017.7,4017.5,3.2078]
[1758916991815,0.83908,4017.6,4017.5,3.2078]
[1758916992015,1.47456644,4017.6,4017.5,3.4638]
[1758916992219,1.47456644,4017.6,4017.5,3.7285]
[1758916992925,1.47456644,4017.6,4017.5,2.7078]
[1758916993125,1.33592,4017.3,4017.2,0.0451]
[1758916993324,1.45310644,4017.3,4017.2,0.3011]
[1758916994128,0.96441,4016.5,4016.4,3.2078]
[1758916994422,0.1513,4017.0,4016.4,3.4638]
[1758916994638,40.91713645,4016.9,4016.6,0.3775]
[1758916994822,0.56491645,4016.8,4016.7,0.256]
[1758916995023,0.56491645,4016.8,4016.7,0.6335]
[1758916996128,0.56490645,4016.8,4016.7,0.6335]
[1758916997832,0.56490645,4016.8,4016.7,1.138]
[1758916999931,0.11713645,4016.8,4016.7,1.138]
[1758917000135,0.56490645,4016.8,4016.7,1.138]
[1758917000328,0.44777,4016.8,4016.7,1.138]
[1758917000632,0.44776,4016.9,4016.8,0.3775]
[1758917000937,0.44776,4016.9,4016.8,0.882]
[1758917001134,0.56485406,4016.9,4016.8,0.882]
[1758917001334,0.44776,4016.9,4016.8,0.882]
[1758917003431,1.33596,4016.9,4016.8,1.138]
[1758917005034,1.33596,4016.9,4016.8,0.882]
[1758917005237,1.33596,4016.9,4016.8,0.7605]
[1758917005938,1.45310813,4016.9,4016.8,0.5045]
[1758917006136,1.45310813,4016.9,4016.8,0.7605]
[1758917006337,1.33596,4016.9,4016.8,0.7605]
[1758917006540,1.33596,4016.9,4016.8,1.138]
[1758917007234,0.5649329,4016.9,4016.8,1.138]
[1758917007431,0.44775,4017.1,4017.0,1.0344]
[1758917007632,0.44775,4017.1,4017.0,6.13321889]
[1758917007938,0.71315,4017.1,4017.0,6.13321889]
[1758917008638,0.71315,4017.1,4017.0,6.38921889]
[1758917009837,1.33595,4017.1,4017.0,1.138]
[1758917010527,1.33595,4017.1,3406.1,8.983]
[1758917010528,0.8882,4016.6,4016.1,1.33908543]
[1758917010730,1.33611,4015.6,4015.5,0.3775]
[1758917010935,1.33611,4015.6,4015.5,0.8832]
[1758917011141,1.33611,4015.6,4015.5,1.138]
[1758917011740,1.33815065,4015.6,4015.5,1.14122847]
[1758917014044,0.71535065,4015.6,4015.5,1.14122847]
[1758917014341,0.26744065,4015.6,4015.5,1.14122847]
[1758917014535,0.26744065,4015.6,4015.5,4.34902847]
[1758917015743,0.00204065,4015.6,4015.5,14.60024736]
[1758917016135,0.00204065,4015.6,4015.5,15.93618317]
[1758917016536,0.00204065,4015.6,4015.5,14.60024736]
[1758917017358,3.2078,4016.5,4016.4,0.882]
[1758917017650,3.4732,4016.5,4016.4,1.138]
[1758917017850,3.8385,4016.5,4016.4,1.138]
[1758917018247,3.84119176,4016.5,4016.4,1.138]
[1758917019255,3.95698995,4016.5,4016.4,1.138]
[1758917021251,0.3653,4017.1,4016.6,0.44779]
[1758917021451,0.44774,4017.1,4017.0,6.13321889]
[1758917021653,1.33591,4017.4,4017.3,0.2497]
[1758917021854,1.33591,4017.4,4017.3,0.8832]
[1758917022049,1.33591,4017.4,4017.3,0.2497]
[1758917022254,1.50835,4017.0,4016.9,1.33936351]
[1758917022459,1.50835,4017.0,4016.9,1.1133]
[1758917022460,0.9127,4017.0,4016.9,1.1133]
[1758917022662,0.83682,4017.3,4017.2,0.8573]
[1758917022852,0.6522,4017.3,4017.2,1.1133]
[1758917023059,0.71082,4017.3,4017.2,1.1133]
[1758917023252,1.09992,4017.3,4017.2,1.1133]
[1758917023460,1.36043,4017.2,4017.1,1.58256351]
[1758917023654,0.9127,4017.2,4017.1,2.45266351]
[1758917024065,1.36043,4017.2,4017.1,2.45266351]
[1758917024360,0.9127,4017.2,4017.1,1.1133]
[1758917024563,1.36043,4017.2,4017.1,1.1133]
[1758917024755,0.9127,4017.2,4017.1,1.1133]
[1758917025157,0.2631,4017.2,4017.1,1.56104]
[1758917025358,1.36043,4017.2,4017.1,0.2432]
[1758917025556,0.00199534,4017.4,4016.6,4.9882046]
[1758917025557,0.71086,4016.9,4016.8,1.33936351]
[1758917025756,1.36046,4016.9,4016.8,1.59536351]
[1758917025953,0.9127,4016.9,4016.8,2.08216351]
[1758917026159,0.44774,4017.1,4016.8,7.6287524]
[1758917026356,0.71084,4017.1,4017.0,0.8573]
[1758917026662,1.36044,4017.1,4017.0,1.1133]
[1758917026870,0.9127,4017.1,4017.0,1.1133]
[1758917027162,1.36044,4017.1,4017.0,0.7428]
[1758917027556,1.36046,4016.9,4016.8,6.4381824]
[1758917027763,1.36046,4016.9,4016.8,5.35481889]
[1758917027965,0.97137,4016.8,4016.7,1.33936351]
[1758917028168,1.36047,4016.8,4016.7,0.256]
[1758917028363,1.36048,4016.7,4016.6,0.6137]
[1758917028564,1.36048,4016.7,4016.6,0.8697]
[1758917029668,0.9127,4016.7,4016.6,1.1133]
[1758917030570,1.36049,4016.7,4016.6,1.1133]
[1758917031164,1.36049,4016.7,4016.6,0.8573]
[1758917031470,1.36049,4016.7,4016.6,1.1133]
[1758917032966,1.36049,4016.7,4016.6,2.08216351]
[1758917033164,1.36049,4016.7,4016.6,0.7428]
[1758917033365,1.36049,4016.7,4016.6,2.08216351]
[1758917033571,1.36049,4016.7,4016.6,1.82616351]
[1758917033869,1.36049,4016.7,4016.6,0.7428]
[1758917035073,0.9127,4016.7,4016.6,0.7428]
[1758917035269,0.9127,4016.7,4016.6,2.45266351]
[1758917035974,1.36049,4016.7,4016.6,2.45266351]
[1758917036370,0.9127,4016.7,4016.6,6.10826351]
[1758917036767,1.09995,4017.0,4016.9,0.4868]
[1758917036967,1.21517756,4017.0,4016.9,1.1133]
[1758917037168,1.47567756,4017.0,4016.9,1.1133]
[1758917037575,0.37832756,4017.0,4016.9,6.21211889]
[1758917038067,0.82607756,4017.0,4016.9,6.21211889]
[1758917038374,0.76742756,4017.0,4016.9,6.21211889]
[1758917038676,1.47567756,4017.0,4016.9,6.21211889]
[1758917038972,1.62357756,4017.0,4016.9,6.21211889]
[1758917039565,1.62357756,4017.0,4016.9,5.95611889]
[1758917039777,1.62357756,4017.0,4016.9,5.84161889]
[1758917040577,1.62357756,4017.0,4016.9,2.1774451]
[1758917041778,1.62357756,4017.0,4016.9,2.5479451]
[1758917041965,0.76742756,4017.0,4016.9,2.5479451]
[1758917042167,0.11522756,4017.0,4016.9,2.9957051]
[1758917042377,1.09992,4017.3,4017.2,0.4868]
[1758917042576,1.21514691,4017.3,4017.2,2.5479451]
[1758917042776,0.82604691,4017.3,4017.2,2.5479451]
[1758917042978,0.37832691,4017.3,4017.2,2.5479451]
[1758917043174,0.82604691,4017.3,4017.2,2.5479451]
[1758917043476,1.21514691,4017.3,4017.2,2.5479451]
[1758917043677,1.47564691,4017.3,4017.2,2.5479451]
[1758917044383,1.47564691,4017.3,4017.2,3.8870627]
[1758917044782,5.63882691,4017.3,4017.1,1.3391176]
[1758917044985,1.3605,4016.6,4016.5,1.3391176]
[1758917045183,1.50841,4016.5,4016.4,1.4346451]
[1758917045476,1.62363691,4016.5,4016.4,1.6906451]
[1758917045678,1.62363691,4016.5,4016.0,38.824]
[1758917045679,0.83693,4016.3,4016.2,1.3391176]
[1758917045885,1.35425,4016.1,4016.0,1.4346451]
[1758917046085,1.02162691,4016.1,4016.0,2.5911451]
[1758917046681,1.02162691,4016.1,4016.0,6.25660825]
[1758917046983,0.247,4015.7,4015.6,3.8466]
[1758917047280,0.247,4015.7,4015.6,4.1026]
[1758917047281,0.98582691,4015.7,4015.6,4.1026]
[1758917047479,0.98582691,4015.7,4015.6,3.707]
[1758917048877,0.98582691,4015.7,4015.6,4.3643]
[1758917049079,0.11522691,4015.7,4015.6,4.3643]
[1758917049783,0.98582691,4015.7,4015.6,4.3643]
[1758917050184,0.98582691,4015.7,4015.6,4.1083]
[1758917050385,1.43372691,4015.7,4015.6,3.9687]
[1758917051282,1.43372691,4015.7,4015.6,4.1083]
[1758917051488,1.43372691,4015.7,4015.6,4.3643]
[1758917052590,1.43372691,4015.7,4015.6,3.707]
[1758917052979,0.98582691,4015.7,4015.6,4.78461]
[1758917053183,0.98582691,4015.7,4015.6,4.3367]
[1758917053793,0.11522691,4015.7,4015.6,4.3367]
[1758917055286,0.11522691,4015.7,4015.6,4.78461]
[1758917055484,3.2078,4016.8,4015.6,8.4638]
[1758917055691,0.44781,4016.5,4016.4,5.99330825]
[1758917055889,0.44781,4016.5,4016.4,6.24930825]